Cogmind - Beta 12 *** ADVENTURER MODE // 2024.01.29 @ 22:50:39 Player: ginkogruen Result: Destroyed by H-66 Slayer with Gauss Rifle Performance ------------- Evolutions (1) 500 Regions Visited (5) 1000 Robots Destroyed (42) 210 Value Destroyed (1283) 1283 Prototype IDs (3) 60 Alien Tech Used (0) 0 Bonus (688) 688 TOTAL SCORE: 3741 Bonus ------- Follower Combat Kills 88 Met Imprinter 300 Was Imprinted 300 Cogmind --------- Core Integrity 0/400 Matter 290/300 Energy 274/290 System Corruption 0% Temperature Cool (0) Movement Flying (325) Ox3 Location -6/Proximity Caves Parts ------- > --- POWER (1) -------- Improved Deuterium Engine > --- PROPULSION (4) --- Makeshift Flight Unit > --- UTILITY (2) ------ Large Storage Unit Signal Interpreter > --- WEAPON (2) ------- Makeshift Laser > --- INVENTORY (15) --- Ion Engine Heat Sink Small Storage Unit Medium Matter Pod (100) Makeshift Salvage Targeting Computer Corruption Screen Phasing AFG EM Pulse Gun Light Assault Rifle Makeshift Shrapnel Gun RU-N14's Throwing Claymores (10) Makeshift Hammer CR-A16's Pointy Stick GAL Module Peak State ------------ > --- POWER ------------ Improved Deuterium Engine > --- PROPULSION ------- Makeshift Leg Makeshift Flight Unit > --- UTILITY ---------- Large Storage Unit Signal Interpreter > --- WEAPON ----------- RU-N14's Throwing Claymores RU-N14's Throwing Claymores > --- INVENTORY -------- Ion Engine Small Storage Unit Medium Matter Pod Makeshift Salvage Targeting Computer Corruption Screen Phasing AFG EM Pulse Gun Makeshift Laser Light Assault Rifle Makeshift Shrapnel Gun RU-N14's Throwing Claymores RU-N14's Throwing Claymores Makeshift Hammer CR-A16's Pointy Stick GAL Module [Rating: 34] Favorites ----------- Power Ion Engine Engine Ion Engine Propulsion Aluminum Leg Treads Light Treads Leg Aluminum Leg Flight Unit Flight Unit Utility Small Storage Unit Storage Small Storage Unit Processor Signal Interpreter Weapon Assault Rifle Energy Gun Medium Laser Energy Cannon Beam Cannon Ballistic Gun Assault Rifle Special Weapon RU-N14's Throwing Claymores Piercing Weapon CR-A16's Pointy Stick Build | -11 -10 -9 -9 -7 -6 ------- Run | Jun Mat Mat Min Zio Pro Slots Evolved 2 | . . 2 . . . Power . | . . . . . . Propulsion 2 | . . 2 . . . Utility . | . . . . . . Weapon . | . . . . . . Parts Attached 44 | 6 7 17 4 5 5 Power 6 | 1 1 1 . 2 1 Engine 6 | 1 1 1 . 2 1 Core . | . . . . . . Reactor . | . . . . . . Propulsion 14 | 2 . 8 2 2 . Treads 2 | . . 2 . . . Leg 7 | 2 . 4 . 1 . Wheel . | . . . . . . Hover . | . . . . . . Flight 5 | . . 2 2 1 . Utility 4 | 1 1 2 . . . Device . | . . . . . . Storage 2 | 1 . 1 . . . Processor 2 | . 1 1 . . . Hackware . | . . . . . . Protection . | . . . . . . Artifact . | . . . . . . Weapon 20 | 2 5 6 2 1 4 Energy Gun 8 | 1 2 4 . . 1 Energy Cannon 2 | . 1 1 . . . Ballistic Gun 6 | 1 2 1 2 . . Ballistic Cannon . | . . . . . . Launcher . | . . . . . . Special Weapon 3 | . . . . 1 2 Impact Weapon . | . . . . . . Slashing Weapon . | . . . . . . Piercing Weapon 1 | . . . . . 1 Special Melee Weapon . | . . . . . . Unidentified Prototypes 3 | . . 1 1 1 . Parts Lost 11 | . . 6 2 . 3 Power . | . . . . . . Propulsion 8 | . . 4 1 . 3 Utility 1 | . . 1 . . . Weapon 2 | . . 1 1 . . Highest Loss Streak 4 | . . 4 4 . 2 To Critical Strikes . | . . . . . . Average Slot Usage (%) 85 | . 98 84 58 93 68 Engine 10 | . 14 10 . 10 11 Leg 11 | . 28 29 . 6 3 Flight 19 | . . 2 14 32 15 Storage 11 | . 14 11 11 11 11 Processor 10 | . 12 9 11 11 11 Energy Gun 1 | . 4 9 . . . Energy Cannon 2 | . 9 8 . . . Ballistic Gun 11 | . 13 1 20 14 3 Special Weapon 5 | . . . . 7 11 Naked Turns . | . . . . . . Heaviest Build 46 | 14 15 33 24 34 46 Greatest Support 43 | 20 20 43 10 20 20 Greatest Overweight (x) 15 | . . 3 7 2 15 Average Overweight (x) . | . . . 2 1 3 Largest Inventory Capacity 15 | 8 8 15 15 15 15 Average Capacity 11 | 7 8 12 15 15 15 Most Carried 15 | 6 8 8 7 15 15 Average Carried 9 | 5 7 6 5 13 14 Final Capacity 15 | 8 8 15 15 15 15 Final Carried 15 | 6 8 7 5 15 14 Class Distribution -------------------- 100% | Mutant Dominant Class ---------------- Mutant | -10/Materials Mutant | -9/Materials Mutant | -9/Mines Mutant | -7/Zion Mutant | -6/Proximity Caves Resources | -11 -10 -9 -9 -7 -6 ----------- Run | Jun Mat Mat Min Zio Pro Matter Collected 817 | 203 79 384 58 60 33 Remotely . | . . . . . . Salvage Created 1400 | . 84 616 156 . 544 Parts 83 | . 8 47 11 . 17 Haulers Intercepted . | . . . . . . Recyclers Shooed 1 | . . . 1 . . Parts Field Recycled . | . . . . . . Retrieved Matter . | . . . . . . Parts Self-Destructed 16 | . . . . 2 14 Prevented . | . . . . . . Kills | -11 -10 -9 -9 -7 -6 ------- Run | Jun Mat Mat Min Zio Pro Combat Hostiles Destroyed 38 | . 3 18 3 . 14 Guns 16 | . . 12 3 . 1 Cannons 9 | . 3 5 . . 1 AOE 12 | . . . . . 12 Classes Destroyed 11 | . 2 4 2 . 3 Worker 1 | . . 1 . . . Tunneler 1 | . . . 1 . . Recycler 1 | . . . 1 . . Watcher 1 | . 1 . . . . Swarmer 14 | . 3 7 3 . 1 Saboteur 1 | . . . . . 1 Grunt 12 | . . 6 . . 6 Brawler 2 | . . . . . 2 Duelist 5 | . . 2 . . 3 Sentry 3 | . . 3 . . . Behemoth 1 | . . . . . 1 Best Kill Streak 8 | . 3 7 3 . 8 Combat Bots Only 8 | . 3 7 3 . 8 Max Kills in Single Turn 8 | . 1 2 1 . 8 Gunslinging . | . . . . . . Exploded 8 | . . . . . 8 Melee . | . . . . . . Uniques/NPCs Destroyed . | . . . . . . Combat | -11 -10 -9 -9 -7 -6 -------- Run | Jun Mat Mat Min Zio Pro Damage Taken 1720 | . 125 917 93 . 585 Core 425 | . 16 241 29 . 139 Absorbed by Shields . | . . . . . . Core Remaining (%) 96 | 100 93 . . . . Volleys Fired 85 | . 6 45 13 . 21 Largest 2 | . 2 2 1 . 2 Hottest 115 | . 80 115 55 . 50 Shots Fired 131 | . 12 69 14 . 36 Gun 72 | . 6 46 14 . 6 Cannon 29 | . 6 23 . . . Launcher . | . . . . . . Special 30 | . . . . . 30 Kinetic 29 | . 6 8 10 . 5 Thermal 72 | . 6 61 4 . 1 Explosive 30 | . . . . . 30 Electromagnetic . | . . . . . . Robot Hit Streak 20 | . 6 20 7 . 5 Robot Miss Streak 2 | . 2 2 2 . . Penetration Max . | . . . . . . Secondary Targets . | . . . . . . Shots Hit Robots 70 | . 6 51 9 . 4 Core Hits 59 | . 4 23 6 . 26 Critical Kills . | . . . . . . Critical Parts Destroyed . | . . . . . . Critical Strikes 4 | . . 1 . . 3 Burn 1 | . . 1 . . . Sever 3 | . . . . . 3 Melee Attacks . | . . . . . . Impact . | . . . . . . Slashing . | . . . . . . Piercing . | . . . . . . Sneak Attacks . | . . . . . . Combat Hostiles . | . . . . . . Follow-up Attacks . | . . . . . . Damage Inflicted 3499 | . 100 965 119 . 2315 Guns 842 | . 11 664 119 . 48 Cannons 382 | . 87 295 . . . Explosions 1892 | . . . . . 1892 Melee . | . . . . . . Ramming 8 | . 2 6 . . . Kinetic 182 | . 11 73 62 . 36 Thermal 1042 | . 87 886 57 . 12 Explosive 1892 | . . . . . 1892 Electromagnetic . | . . . . . . Impact . | . . . . . . Slashing 375 | . . . . . 375 Piercing . | . . . . . . Highest Corruption 5 | . . 5 5 5 . Average Corruption 5 | . . 5 5 5 . Corruption Purged . | . . . . . . Corruption Blocked . | . . . . . . Effects 23 | . . 11 10 2 . Message Errors 5 | . . 3 2 . . Matter Fused 5 | . . 2 3 . . Heat Flow Errors 3 | . . 2 1 . . Energy Discharges 5 | . . 2 1 2 . Parts Rejected 1 | . . 1 . . . Data Loss (minor) 1 | . . . 1 . . Misfires 2 | . . 1 1 . . Alerts 1 | . . . 1 . . Overload Shots . | . . . . . . Overflow Damage 11 | . . . . . 11 Projectiles . | . . . . . . Explosions 11 | . . . . . 11 Melee . | . . . . . . Knockbacks 1 | . 1 . . . . Impact 1 | . 1 . . . . Kinetic . | . . . . . . Secondary . | . . . . . . Self-Inflicted Damage . | . . . . . . Shots . | . . . . . . Rammed . | . . . . . . Targets Rammed 4 | 1 2 1 . . . Kicked 4 | 1 2 1 . . . Crushed . | . . . . . . Highest Temperature 365 | . 90 365 87 . 33 Average Temperature 140 | . 42 157 50 . 17 Received Heat Transfer 495 | . 6 249 . . 240 Effects 4 | . . 4 . . . Shutdowns 2 | . . 2 . . . Matter Decay 1 | . . 1 . . . Damage (minor) 1 | . . 1 . . . Siege Activations . | . . . . . . Robots Corrupted . | . . . . . . Combat Hostiles . | . . . . . . Parts Fried . | . . . . . . Impact Corruptions . | . . . . . . Robots Melted 1 | . . 1 . . . Combat Hostiles 1 | . . 1 . . . Parts Melted 2 | . 1 1 . . . Heat Transferred 2164 | . 185 1850 111 . 18 Parts Sabotaged . | . . . . . . Parts Stolen . | . . . . . . Parts Stripped . | . . . . . . Power Chain Reactions . | . . . . . . Missiles Intercepted . | . . . . . . Alert | -11 -10 -9 -9 -7 -6 ------- Run | Jun Mat Mat Min Zio Pro Peak Influence 398 | . 137 398 171 . . Initial 102 | . . 49 102 . . Average 40 | . 41 235 165 . . Maximum Alert Level 1 | . . 1 . . . Low Security (%) 92 | 100 100 32 100 . . Level 1 7 | . . 67 . . . Level 2 . | . . . . . . Level 3 . | . . . . . . Level 4 . | . . . . . . Level 5 . | . . . . . . High Security . | . . . . . . Max Security . | . . . . . . Squads Dispatched 2 | . . 1 . . 1 Investigation 1 | . . 1 . . . Extermination . | . . . . . . Reinforcement . | . . . . . . Assault 1 | . . . . . 1 Garrison . | . . . . . . Intercept . | . . . . . . Searches Triggered . | . . . . . . Construction Impeded . | . . . . . . Haulers Reinforced . | . . . . . . Active Scanning Responses . | . . . . . . Cargo Convoy Interrupts . | . . . . . . Stealth | -11 -10 -9 -9 -7 -6 --------- Run | Jun Mat Mat Min Zio Pro Distress Signals 5 | . 2 2 . . 1 Communications Jammed . | . . . . . . Distress Signals . | . . . . . . Times Spotted 63 | . 11 27 4 . 21 Peak Tracking Total 9 | . 5 7 4 . 9 Tactical Retreats 4 | . 3 1 . . . Traps | -11 -10 -9 -9 -7 -6 ------- Run | Jun Mat Mat Min Zio Pro Traps Triggered 1 | . 1 . . . . Indirectly . | . . . . . . Trap Hack Attempts . | . . . . . . Triggered . | . . . . . . Disarmed . | . . . . . . Reprogrammed . | . . . . . . Reused . | . . . . . . Traps Extracted . | . . . . . . Installed . | . . . . . . Triggered . | . . . . . . Machines | -11 -10 -9 -9 -7 -6 ---------- Run | Jun Mat Mat Min Zio Pro Machines Disabled 3 | . . . 1 . 2 Max in Single Turn 2 | . . . 1 . 2 Machines Repaired . | . . . . . . Machines Sabotaged . | . . . . . . Overloaded Fab Kills . | . . . . . . Hacking | -11 -10 -9 -9 -7 -6 --------- Run | Jun Mat Mat Min Zio Pro Machines Accessed 6 | . 2 4 . . . Terminals 5 | . 1 4 . . . Fabricators . | . . . . . . Repair Stations . | . . . . . . Recycling Units 1 | . 1 . . . . Scanalyzers . | . . . . . . Garrison Access . | . . . . . . Total Hacks 15 | . 5 10 . . . Successful 8 | . 4 4 . . . Failed 7 | . 1 6 . . . Catastrophic 3 | . . 3 . . . Database Lockouts . | . . . . . . Manual 2 | . . . . 2 . Terminals 13 | . 3 10 . . . Fabricators . | . . . . . . Repair Stations . | . . . . . . Recycling Units 2 | . 2 . . . . Scanalyzers . | . . . . . . Garrison Access . | . . . . . . Terminal Hacks 6 | . 2 4 . . . Record 5 | . 1 4 . . . Alert Level 1 | . 1 . . . . Fabricator Hacks . | . . . . . . Repair Station Hacks . | . . . . . . Recycling Unit Hacks 2 | . 2 . . . . Report Inventory 1 | . 1 . . . . Retrieve Components 1 | . 1 . . . . Scanalyzer . | . . . . . . Garrison Access Hacks . | . . . . . . Unauthorized Hacks . | . . . . . . Terminals . | . . . . . . Fabricators . | . . . . . . Repair Stations . | . . . . . . Recycling Units . | . . . . . . Scanalyzers . | . . . . . . Garrison Access . | . . . . . . Data Cores Recovered . | . . . . . . Used . | . . . . . . Hacking Detections 6 | . 2 4 . . . Full Trace Events 3 | . 1 2 . . . Feedback Events . | . . . . . . Feedback Blocked . | . . . . . . Robot Schematics Acquired . | . . . . . . Robots Built . | . . . . . . Authchips . | . . . . . . Time . | . . . . . . Total Robot Build Rating . | . . . . . . Part Schematics Acquired . | . . . . . . Parts Built . | . . . . . . Authchips . | . . . . . . Time . | . . . . . . Total Part Build Rating . | . . . . . . Parts Repaired . | . . . . . . Time . | . . . . . . Parts Recycled . | . . . . . . Recycled Matter . | . . . . . . Retrieved Matter . | . . . . . . Retrieved Components . | . . . . . . Parts Scanalyzed . | . . . . . . Part Schematics Acquired . | . . . . . . Parts Damaged . | . . . . . . Bothacking | -11 -10 -9 -9 -7 -6 ------------ Run | Jun Mat Mat Min Zio Pro Used RIF Installer . | . . . . . . Robots Hacked . | . . . . . . Non-combat . | . . . . . . Combat . | . . . . . . Robot Hacks Applied . | . . . . . . Relay Couplers Released . | . . . . . . Fabnet Peak Effective % . | . . . . . . Robots Rewired 2 | . . . . . 2 Allies Hacked 1 | . . . . . 1 Hacks Repelled . | . . . . . . Allies | -11 -10 -9 -9 -7 -6 -------- Run | Jun Mat Mat Min Zio Pro Total Allies 6 | . . . . 4 2 Largest Group 4 | . . . . 4 4 Highest-Rated Group 152 | . . . . 152 152 Highest-Rated Ally 39 | . . . . 39 39 Total Orders . | . . . . . . Ally Attacks 46 | . . . . . 46 Total Damage 760 | . . . . . 760 Kills 2 | . . . . . 2 Allies Corrupted . | . . . . . . Allies Melted . | . . . . . . Intel | -11 -10 -9 -9 -7 -6 ------- Run | Jun Mat Mat Min Zio Pro Robot Analysis Total . | . . . . . . Derelict Logs Recovered 1 | . . . . 1 . Drone Launches . | . . . . . . Drone Recoveries . | . . . . . . Exploration | -11 -10 -9 -9 -7 -6 ------------- Run | Jun Mat Mat Min Zio Pro Turns Passed 8125 | 3579 663 542 298 2073 970 Spaces Moved 3270 | 907 496 297 103 1202 265 Core 53 | 4 . . 6 . 43 Treads . | . . . . . . Legs 2371 | 903 496 270 2 548 152 Wheels . | . . . . . . Hover . | . . . . . . Flight 846 | . . 27 95 654 70 Fastest Speed 50 | 50 120 112 197 122 210 Average Speed 161 | 119 120 124 261 170 338 Slowest Speed 800 | 120 120 295 440 210 800 Overloaded Moves . | . . . . . . Propulsion Burnouts . | . . . . . . Robots Hopped . | . . . . . . Cave-ins Triggered . | . . . . . . Exploration Rate (%) 58 | 91 65 24 33 90 46 Regions Visited 5 Branch Regions 3 Pre-discovered Areas 2 | . . . . 2 . Known Exits Taken 3 | . . 1 1 1 . Unknown Exits Taken 2 | 1 1 . . . . Scrap Searched 3 | . . . . 3 . Spaces Dug . | . . . . . . Terrain Destroyed 166 | . . . . . 166 Melee . | . . . . . . Projectile 2 | . . . . . 2 AOE 164 | . . . . . 164 Terrain Rammed . | . . . . . . Walls Destroyed . | . . . . . . Machines Disabled . | . . . . . . Actions | -11 -10 -9 -9 -7 -6 --------- Run | Jun Mat Mat Min Zio Pro Total 5998 | 3397 550 402 119 1227 303 Wait 2541 | 2478 31 31 . . 1 Move 3265 | 906 495 296 102 1201 265 Hop . | . . . . . . Pick Up 26 | 6 5 1 . 13 1 Fast Attach 24 | 6 2 9 2 5 . Attach 10 | . . 6 2 . 2 Detach 5 | . . 5 . . . Swap 10 | . 5 2 . . 3 Drop 16 | . 4 6 . 5 1 Fire 85 | . 6 45 13 . 21 Melee . | . . . . . . Ram . | . . . . . . Kick 4 | 1 2 1 . . . Crush . | . . . . . . Escape Stasis . | . . . . . . Rewire 12 | . . . . 3 9 Trap . | . . . . . . Miscellaneous . | . . . . . . Route ------- -11/Junkyard -10/Materials (discovered 3 exits: *Mat x2 / [*Min]) -9/Materials (discovered 2 exits: *Min / [*Sto]) -9/Mines (discovered 2 exits: [*Mat] / *Zio) -7/Zion -6/Proximity Caves History --------- Turn | Location | Event 2 | -11/Junkyard | Discovered new exit (range 16) 3580 | -11/Junkyard | Entered Materials 3581 | -10/Materials | Build established: Mutant 3800 | -10/Materials | Discovered new exit (range 7) 3869 | -10/Materials | Discovered new exit (range 9) 3982 | -10/Materials | Discovered new exit (range 7) 4243 | -10/Materials | Entered another Materials area 4243 | -9/Materials | Evolved 2 slots: Propulsion x2 4398 | -9/Materials | Lost 4 parts (2n1u1w) 4403 | -9/Materials | Destroyed 7 combat bots 4754 | -9/Materials | Discovered new exit (range 13) 4775 | -9/Materials | Discovered new exit (range 15) 4777 | -9/Materials | Core integrity fell below 50% 4783 | -9/Materials | Identified exit to Mines 4785 | -9/Materials | Entered Mines 4829 | -9/Mines | Lost 4 parts (3n1w) 4912 | -9/Mines | Discovered new exit (range 12) 5054 | -9/Mines | A Derelict revealed a hidden shortcut to a safe place 5077 | -9/Mines | Identified exit to Zion 5083 | -9/Mines | Entered Zion 5164 | -7/Zion | System corruption cleaned by Quarantine Array 5202 | -7/Zion | Learned 4 Factory zone layouts 5402 | -7/Zion | Learned Factory emergency access door positions 5495 | -7/Zion | Imprinted 5498 | -7/Zion | Declared Zion's savior 5671 | -7/Zion | Found GAL Module 5794 | -7/Zion | Found Prototype Special Weapon 5796 | -7/Zion | Found Prototype Special Weapon 5798 | -7/Zion | Found Prototype Special Weapon 5801 | -7/Zion | Found Prototype Special Weapon 5801 | -7/Zion | Identified RU-N14's Throwing Claymores (x4) 6151 | -7/Zion | Learned location of Armory (-4) 6784 | -7/Zion | Found Prototype Device 6867 | -7/Zion | Found CR-A16's Pointy Stick 7053 | -7/Zion | Discovered new exit (range 15) 7154 | -7/Zion | Identified exit to Proximity Caves 7156 | -7/Zion | Entered Proximity Caves 7156 | -6/Proximity Caves | Accompanied by 4 allies 7244 | -6/Proximity Caves | Attracted the attention of an 0b10 checkpoint 7380 | -6/Proximity Caves | Spotted B-75 Beast 7404 | -6/Proximity Caves | Destroyed B-75 Beast 7492 | -6/Proximity Caves | Attracted the attention of an 0b10 outpost 7499 | -6/Proximity Caves | Core integrity fell below 20% 7515 | -6/Proximity Caves | Destroyed 8 combat bots 7982 | -6/Proximity Caves | Unaware initiated a cargo recovery operation 8126 | -6/Proximity Caves | Destroyed by H-66 Slayer with Gauss Rifle Last Messages --------------- 07566_ Hvy. Laser fries itself beyond repair. 07575_ Acquired Heat Sink. 07600_ The unstable cave ceiling collapses. 07680_ Attempting to rewire Y-54 Guardian. 07682_ Y-54 Guardian rewired. [Achievement: A New Friend] 07689_ Attempting to rewire B-48 Gladiator. 07694_ B-48 Gladiator rewired. 07727_ The unstable cave ceiling collapses. 07982_ ALERT: Cargo recovery in progress. Unregistered derelicts vacate Proximity Caves. The lore collection interface (ESC then open Records) is a centralized reference of all the lore you've uncovered throughout all runs. 08116_ A-27 Freighter distress signal alerts nearby ally. 08120_ Penetrated by Slug. 08121_ P-60 Hacker hacks Gladiator 5a, rebooting. 08122_ RU-N14's Throwing Claymores expended. 08123_ Gladiator 5a destroyed. 08126_ Guardian 5a destroyed. 08126_ Penetrated by Slug. Map ----- +----------------------------------------------------+ | | | | | | | | | ?????????????????????????????????????????????????? | | ?????????????????????????????????????????????????? | | ?????????????????????????????????????????????????? | | ?????????????????????????????????????????????????? | | ?????????????????????????????????????????????????? | | ?????????????????????????????????????????????????? | | ?????????????????????????????????????????????????? | | ?????????????????????????????????????????????????? | | ?????????????????????????????????????????????????? | | ?????????????????????????????????????????????????? | | ?????????????????????????????????????????????????? | | ?????????????????????????????????????????????????? | | ?????????????????????????????????????????????????? | | ?????????????????????????????????????????????????? | | ?????????????????????????????????????????????????? | | ?????????????????????????????????????? ??????????? | | ?????????##?????###????????????????#;ph??????????? | | ?????????? #???## ##????????????? ; * ?????????? | | ?????????## ??## # #####??????? ?????????? | | ?????????# ### #????? ????????? | | ??????#### # #### ????????? | | " ## # !@ #?????????????? | | ##### # ### =% % ;; i#??????????????? | | ?????????# ############# A #???????????? | | ?????????## ### ##??????? #???????????? | | ??????????# ## ## ###??????? """ #?????????? | | ??????????# #### ###???????"?????????????? | | ??????????# #?# ##????????????????????? | | ??????????# #?# #????????????????????? | | ??????????# ### #######????????????????????? | | ???????##### #??????????????????????????? | | ??????## ### ##??????????????????????????? | | ??????# ### ##???????????????????????????? | | ?????## ## ##????????????????????????????? | | ????## ##????????????????????????????? | | #### #????????????????????????????? | | ##????????????????????????????? | | """ ## ##?????????????????????????????? | | """""" ### ##??????????????????????????????? | | """ """ ### ##???????????????????????????????? | | """ ######????????????????????????????????? | | """ """ #?????????????????????????????????????? | | """""" #?????????????????????????????????????? | | """ #####?????????????????????????????????? | | ##### #?????????????????????????????????? | | ????# #?????????????????????????????????? | +----------------------------------------------------+ Best States ------------- Heat Dissipation 28 Energy Generation 16 Energy Capacity 290 Matter Stores 300 Matter Capacity 300 Sight Range 16 Terrain Scan Density 10 Resistance: KI 20 Resistance: TH 20 Resistance: EX 20 Resistance: EM 20 Resistance: I 20 Resistance: S 20 Resistance: P 20 Evasion (%) 55 Targeting Accuracy 5 Offensive Hacking 10 Item Schematics ----------------- None Robot Schematics ------------------ None Fabricated ------------ Nothing Alien Tech Used ----------------- None Achievements -------------- A New Friend Oh No You Don't! Quick And Dirty Robot Respite The One Challenges ------------ None Game ------ Seed ControlHelicalReactor Manual? 0 Play Time 01:07:04 Cumulative 5.9 hours Start 2024.01.28 @ 13:29:15 End 2024.01.29 @ 22:50:39 Sessions 3 Manual Loads 0 Difficulty Adventurer Special Mode None Game No. 10 Rogue 8 Adventurer 2 Explorer 0 Win Type - Total 0 Types 0/0/0/0/0/0/0/0/0 Lore% 8 Gallery% 8 Achievement% 12 Wizard Run 0 Options --------- ASCII 0 Keyboard 1 Movement Vi Keybinds 0 Fullscreen 1 Font 24/Terminus Map View 76x50 Tactical HUD 1 Map Filters NONE Filters NONE Steam 1 RUN: 4a587ce9-732b-4535-b1f9-15622635421b